bitfinex-derivatives/quotes_BTCF0:USTF0_20240815
["timestamp","ask_amount","ask_price","bid_price","bid_amount"]
[1723725723171,1.683974,59226.0,59225.0,3.1e-07]
[1723725723375,0.08445,59203.0,59202.0,0.3608]
[1723725723676,0.08445,59203.0,59198.0,0.11504353]
[1723725723677,0.3608,59206.0,59195.0,0.0016]
[1723725723874,0.5108,59206.0,59190.0,0.3608]
[1723725724071,0.5508,59206.0,59191.0,0.15663502]
[1723725724273,0.3608,59199.0,59195.0,0.084461]
[1723725724577,0.3608,59199.0,59192.0,0.084465]
[1723725724773,0.3608,59199.0,59190.0,0.3608]
[1723725725081,0.3608,59199.0,59193.0,0.084464]
[1723725725381,0.3608,59199.0,59190.0,0.3608]
[1723725725578,0.084461,59196.0,59184.0,0.3608]
[1723725725778,0.445256,59199.0,59185.0,0.15665324]
[1723725726080,0.31005352,59199.0,59192.0,0.084465]
[1723725726288,0.084475,59186.0,59172.0,0.47584353]
[1723725726577,0.00018793,59185.0,59181.0,0.084482]
[1723725726879,0.00018793,59185.0,59172.0,0.3608]
[1723725727084,0.084478,59184.0,59177.0,0.445287]
[1723725727283,0.00018793,59185.0,59177.0,0.3108]
[1723725727577,0.084479,59184.0,59177.0,0.3108]
[1723725727981,0.00018793,59185.0,59177.0,0.395288]
[1723725728175,0.16018793,59185.0,59177.0,0.3108]
[1723725728581,0.3608,59183.0,59174.0,0.084491]
[1723725728780,0.725,59175.0,59166.0,0.00018167]
[1723725728987,0.084494,59173.0,59163.0,0.084507]
[1723725729285,0.875,59175.0,59161.0,0.3608]
[1723725729286,0.3618,59175.0,59161.0,0.3608]
[1723725729491,0.448683,59181.0,59174.0,0.04910512]
[1723725729679,0.448683,59181.0,59153.0,0.3608]
[1723725729680,0.809491,59175.0,59153.0,0.3608]
[1723725729878,0.809491,59175.0,59172.0,0.0491035]
[1723725729879,0.08462851,59174.0,59172.0,0.0491035]
[1723725730086,0.3608,59173.0,59154.0,0.15671359]
[1723725730283,0.084495,59172.0,59168.0,0.04910873]
[1723725730477,0.7216,59169.0,59164.0,0.04910873]
[1723725730782,0.084513,59159.0,59137.0,0.084544]
[1723725730985,0.084513,59159.0,59147.0,0.04909588]
[1723725730986,0.00018264,59158.0,59147.0,0.04909588]
[1723725731173,0.00018264,59158.0,59132.0,0.00015216]
[1723725731174,0.7216,59149.0,59132.0,0.00015216]
[1723725731475,0.7216,59149.0,59134.0,0.3608]
[1723725731476,0.3608,59143.0,59134.0,0.3608]
[1723725731671,0.3608,59143.0,59137.0,0.084544]
[1723725731875,0.3608,59143.0,59132.0,0.00015216]
[1723725731876,0.00020612,59142.0,59132.0,0.00015216]
[1723725732076,0.00020612,59142.0,59138.0,0.04902436]
[1723725732077,0.08474512,59142.0,59138.0,0.04902436]
[1723725732271,0.36100612,59142.0,59135.0,0.04902436]
[1723725732483,0.27643301,59142.0,59136.0,0.04902436]
[1723725732672,0.27643301,59142.0,59141.0,0.084539]
[1723725733088,0.3608,59152.0,59141.0,0.90724]
[1723725733283,0.3608,59152.0,59151.0,0.084525]
[1723725733479,0.36092959,59152.0,59151.0,0.04893133]
[1723725733685,0.36092959,59152.0,59147.0,0.04893133]
[1723725733990,0.36092959,59152.0,59151.0,0.084525]
[1723725734992,0.36092959,59152.0,59151.0,0.591685]
[1723725735375,0.36092959,59152.0,59151.0,0.084525]
[1723725735582,0.36092959,59152.0,59151.0,0.591685]
[1723725735782,0.36092959,59152.0,59151.0,0.64050013]
[1723725735985,0.36092959,59152.0,59151.0,0.591685]
[1723725736180,0.36092959,59152.0,59151.0,0.64048886]
[1723725736481,0.00025359,59154.0,59153.0,0.084522]
[1723725736686,0.00025359,59154.0,59153.0,0.13333217]
[1723725736882,0.3608,59163.0,59162.0,0.084509]
[1723725737189,0.3608,59170.0,59162.0,0.084509]
[1723725737392,0.084434,59215.0,59178.0,0.084486]
[1723725737393,0.3608,59179.0,59178.0,0.084486]
[1723725737584,0.3608,59191.0,59190.0,0.084469]
[1723725737993,0.3608,59191.0,59190.0,0.991309]
[1723725738197,0.084447,59206.0,59190.0,1.26764]
[1723725738383,0.3608,59201.0,59189.0,0.3608]
[1723725738691,0.084445,59207.0,59202.0,0.08445]
[1723725738881,0.3608,59208.0,59189.0,0.40960661]
[1723725739081,0.365,59205.0,59189.0,0.3608]
[1723725739285,0.445256,59199.0,59188.0,0.084471]
[1723725739481,0.084464,59194.0,59187.0,0.3608]
[1723725739683,0.3608,59199.0,59187.0,0.3608]
[1723725739884,0.7258,59199.0,59187.0,0.40960661]
[1723725740087,0.3608,59199.0,59198.0,0.084458]
[1723725740291,0.084462,59195.0,59194.0,0.04885035]
[1723725740492,0.3608,59199.0,59194.0,0.04885035]
[1723725740493,0.08446,59197.0,59194.0,0.084463]
[1723725740695,0.08446,59197.0,59194.0,0.13336029]
[1723725741096,0.3608,59206.0,59198.0,0.084458]
[1723725741298,0.084455,59200.0,59198.0,0.49415529]
[1723725741487,0.3608,59206.0,59200.0,0.084454]
[1723725741797,0.084452,59203.0,59201.0,0.04893888]
[1723725741994,0.084452,59202.0,59201.0,0.04893888]
[1723725742296,0.084449,59205.0,59198.0,0.3608]
[1723725742502,0.084449,59204.0,59202.0,0.084451]
[1723725742700,0.3608,59210.0,59202.0,0.084451]
[1723725742996,0.084449,59204.0,59202.0,0.04898113]
[1723725743299,0.084452,59202.0,59201.0,0.04898113]
[1723725743501,0.084454,59201.0,59198.0,0.3608]
[1723725743703,0.084454,59201.0,59199.0,0.084456]
[1723725744094,0.084446,59207.0,59203.0,0.08445]
[1723725744290,0.00025338,59208.0,59203.0,0.08445]
[1723725744492,0.00025338,59208.0,59197.0,0.08181818]
[1723725744493,0.08393625,59208.0,59207.0,0.04907576]
[1723725744699,0.3608,59210.0,59197.0,0.08181818]
[1723725744700,0.084445,59207.0,59206.0,0.04907576]
[1723725745502,0.084445,59207.0,59197.0,0.16627718]
[1723725745503,0.50672,59207.0,59197.0,0.16627718]
[1723725745801,0.3608,59210.0,59197.0,0.00025338]
[1723725745802,0.084455,59200.0,59197.0,0.00025338]
[1723725745992,0.084452,59203.0,59197.0,0.00025338]
[1723725746305,0.449458,59198.0,59197.0,0.00025338]
[1723725746609,0.449458,59198.0,59176.0,0.00015226]
[1723725746610,0.084475,59186.0,59176.0,0.00015226]
[1723725746899,0.084488,59177.0,59176.0,0.00015226]
[1723725747099,0.3608,59180.0,59176.0,0.00015226]
[1723725747400,0.3608,59191.0,59179.0,0.3608]
[1723725747600,0.3608,59197.0,59189.0,0.41007537]
[1723725747905,0.3608,59197.0,59195.0,0.04927537]
[1723725748196,0.36176001,59203.0,59195.0,0.3608]
[1723725748393,0.30164849,59203.0,59202.0,0.084452]
[1723725749201,0.30164849,59203.0,59195.0,0.45867392]
[1723725749202,0.00025338,59205.0,59204.0,0.084449]
[1723725749797,0.00025338,59205.0,59204.0,0.168898]
[1723725750097,0.084413,59230.0,59204.0,0.168898]
[1723725750098,0.3608,59236.0,59225.0,0.084418]
[1723725750290,0.615204,59236.0,59225.0,0.3608]
[1723725750491,0.3608,59236.0,59229.0,0.04926503]
[1723725750700,0.3608,59236.0,59231.0,0.04926503]
[1723725750908,0.3608,59236.0,59234.0,0.084406]
[1723725751202,0.3608,59241.0,59235.0,0.04919964]
[1723725751398,0.3608,59241.0,59228.0,0.04920032]
[1723725751399,0.3608,59236.0,59228.0,0.04920032]
[1723725751600,0.3608,59236.0,59230.0,0.04920032]
[1723725751795,0.445204,59236.0,59229.0,0.04920032]
[1723725752011,0.3608,59236.0,59231.0,0.04920032]
[1723725752190,0.084408,59233.0,59231.0,0.04920032]
[1723725752390,0.3608,59236.0,59230.0,0.04920032]
[1723725753008,0.445205,59236.0,59232.0,0.04920032]
[1723725753206,0.3608,59233.0,59223.0,0.06564954]
[1723725753406,0.3608,59233.0,59218.0,0.06564954]
[1723725753407,0.365,59226.0,59218.0,0.06564954]
[1723725753603,0.365,59226.0,59223.0,0.04923586]
[1723725753804,0.365,59226.0,59219.0,0.04923586]
[1723725753805,0.084426,59220.0,59219.0,0.04923586]
[1723725753994,0.084429,59218.0,59214.0,0.06564954]
[1723725754195,0.084422,59223.0,59214.0,0.06564954]
[1723725754405,0.15,59223.0,59218.0,0.04922805]
[1723725754797,0.084426,59221.0,59218.0,0.04922805]
[1723725755195,0.084426,59221.0,59216.0,0.13366005]
[1723725755499,0.00025338,59222.0,59221.0,0.084425]
[1723725755807,0.00025338,59222.0,59221.0,0.13363013]
[1723725756008,0.084402,59237.0,59231.0,0.08441]
[1723725756208,0.084404,59236.0,59227.0,0.3608]
[1723725756516,0.3608,59234.0,59227.0,0.3608]
[1723725756802,0.3608,59240.0,59229.0,0.084413]
[1723725757110,0.084406,59234.0,59229.0,0.084413]
[1723725757305,0.03,59246.0,59227.0,0.3608]
[1723725757306,0.3197,59250.0,59233.0,0.3608]
[1723725757497,0.6805,59250.0,59239.0,0.3608]
[1723725757694,0.084398,59240.0,59239.0,0.3608]
[1723725758394,0.084393,59244.0,59239.0,0.3608]
[1723725758798,0.084394,59243.0,59240.0,0.084397]
[1723725759003,0.084397,59241.0,59239.0,0.3608]
[1723725759204,0.084395,59242.0,59239.0,0.3608]
[1723725759705,0.00025338,59245.0,59239.0,0.3608]
[1723725760012,0.3608,59260.0,59252.0,0.08438]
[1723725760195,0.084375,59256.0,59253.0,0.084379]
[1723725760406,0.3608,59260.0,59249.0,0.3608]
[1723725760711,0.3608,59260.0,59233.0,0.365]
[1723725760712,0.7258,59253.0,59233.0,0.445206]
[1723725760898,0.084399,59240.0,59234.0,0.084406]
[1723725761103,0.3608,59246.0,59233.0,0.3608]
[1723725761406,0.1515,59252.0,59238.0,0.3608]
[1723725761704,0.00025317,59243.0,59238.0,0.3608]
[1723725761906,0.084399,59239.0,59238.0,0.3608]
[1723725762316,0.168798,59239.0,59238.0,0.3608]
[1723725762610,0.084399,59239.0,59238.0,0.3608]
[1723725763296,0.36105317,59243.0,59232.0,0.3608]
[1723725763602,0.36105317,59243.0,59239.0,0.084399]
[1723725763803,0.44544717,59243.0,59239.0,0.084399]
[1723725764604,0.44544717,59243.0,59232.0,0.3608]
[1723725764605,0.00025317,59243.0,59242.0,0.445195]
[1723725764996,0.00025317,59243.0,59242.0,0.084395]
[1723725765197,0.00025317,59243.0,59236.0,0.3608]
[1723725765411,0.084402,59237.0,59236.0,0.3608]
[1723725765599,0.168804,59237.0,59236.0,0.3608]
[1723725765800,0.178804,59237.0,59236.0,0.3608]
[1723725765999,0.084409,59232.0,59231.0,0.00025317]
[1723725767504,0.7258,59238.0,59231.0,0.00025317]
[1723725767505,0.449391,59245.0,59231.0,0.00025317]
[1723725767714,0.54105317,59243.0,59235.0,0.084405]
[1723725768010,0.084409,59232.0,59231.0,0.00025317]
[1723725768608,0.084411,59231.0,59226.0,0.40999147]
[1723725768801,0.084411,59231.0,59226.0,0.3608]
[1723725768802,0.264411,59231.0,59226.0,0.3608]
[1723725769003,0.084416,59227.0,59226.0,0.3608]
[1723725770311,0.1615,59233.0,59227.0,0.084415]
[1723725770514,0.084409,59232.0,59228.0,0.084415]
[1723725770712,0.254409,59232.0,59228.0,0.084415]
[1723725771009,0.254409,59232.0,59226.0,0.3608]
[1723725771010,0.084412,59230.0,59226.0,0.3608]
[1723725771200,0.084414,59229.0,59226.0,0.3608]
[1723725771405,0.084416,59227.0,59226.0,0.3608]
[1723725771604,0.084416,59227.0,59221.0,0.00025317]
[1723725771605,0.084423,59222.0,59221.0,0.00025317]
[1723725771800,0.084423,59222.0,59211.0,0.04919147]
[1723725771801,0.5108,59222.0,59211.0,0.04919147]
[1723725772006,0.3608,59215.0,59209.0,0.04919147]
[1723725772309,0.3608,59215.0,59210.0,0.08444]
[1723725772605,0.00012288,59214.0,59213.0,0.084436]
[1723725773308,0.168876,59212.0,59211.0,0.04919147]
[1723725773513,0.00012288,59214.0,59211.0,0.084439]
[1723725773811,0.00012288,59214.0,59210.0,0.04919147]
[1723725773812,0.084438,59212.0,59210.0,0.04919147]
[1723725774016,0.00012288,59214.0,59212.0,0.084437]
[1723725774216,0.00012288,59214.0,59208.0,0.49468664]
[1723725774403,0.445242,59209.0,59208.0,0.00025317]
[1723725774607,0.445242,59209.0,59192.0,0.241565]
[1723725774608,0.3608,59209.0,59198.0,0.04919147]
[1723725774910,0.3608,59209.0,59192.0,0.1571]
[1723725774911,0.08446,59196.0,59195.0,0.04919147]
[1723725775113,0.084463,59194.0,59193.0,0.04943583]
[1723725775412,0.00020324,59196.0,59192.0,0.04943583]
[1723725775413,0.084465,59193.0,59192.0,0.04943583]
[1723725775807,0.084466,59192.0,59191.0,0.41023583]
[1723725776011,0.00020324,59196.0,59191.0,0.41023583]
[1723725776209,0.084463,59195.0,59191.0,0.41023583]
[1723725776513,0.00020324,59196.0,59195.0,0.084462]
[1723725777110,0.3608,59214.0,59205.0,0.084447]
[1723725777317,0.32704,59209.0,59208.0,0.084443]
[1723725777513,0.32704,59209.0,59198.0,0.41023583]
[1723725777514,0.3608,59214.0,59213.0,0.084435]
[1723725778013,0.084409,59232.0,59213.0,0.084435]
[1723725778014,0.3608,59226.0,59225.0,0.084419]
[1723725778207,0.445208,59233.0,59225.0,0.46974653]
[1723725778407,0.30168072,59233.0,59232.0,0.084409]
[1723725778615,0.084403,59237.0,59232.0,0.28521201]
[1723725778812,0.3608,59239.0,59238.0,0.084401]
[1723725779008,0.3608,59239.0,59238.0,0.36961301]
[1723725779322,0.3608,59239.0,59238.0,0.66944049]
[1723725779505,0.3608,59239.0,59238.0,0.48490285]
[1723725779710,0.3608,59239.0,59238.0,0.36953727]
[1723725780216,0.00025339,59244.0,59243.0,0.084393]
[1723725780417,0.00025339,59244.0,59243.0,0.36952927]
[1723725781025,0.00025339,59244.0,59243.0,0.5539774]
[1723725781215,0.365,59263.0,59243.0,0.5539774]
[1723725781216,0.3608,59258.0,59243.0,1.94915789]
[1723725781520,0.367808,59258.0,59254.0,0.13174054]
[1723725781707,0.084375,59256.0,59255.0,0.4695844]
[1723725784419,0.3608,59258.0,59255.0,0.4695844]
[1723725784717,0.3608,59258.0,59257.0,0.084373]
[1723725784912,0.3608,59258.0,59257.0,0.5539574]
[1723725785307,0.3608,59258.0,59257.0,0.68569794]
[1723725785707,0.3608,59258.0,59257.0,0.5539574]
[1723725785917,0.00025317,59261.0,59260.0,0.084369]
[1723725786120,0.00025317,59261.0,59260.0,0.76625946]
[1723725786317,0.08462117,59261.0,59260.0,0.4695844]
[1723725786830,0.08462117,59261.0,59260.0,0.58457141]
[1723725787029,0.08462117,59261.0,59260.0,0.58456842]
[1723725787214,0.08462117,59261.0,59260.0,0.60098206]
[1723725787414,0.08462117,59261.0,59260.0,0.46954002]
[1723725788020,0.00025317,59261.0,59260.0,0.55390902]
[1723725788326,0.3608,59263.0,59260.0,0.46954002]
[1723725788327,0.22599027,59263.0,59260.0,0.46954002]
[1723725788514,0.22599027,59263.0,59262.0,0.084366]
[1723725788718,0.22599027,59263.0,59262.0,0.55389468]
[1723725789021,0.3608,59271.0,59262.0,0.46952868]
[1723725789328,0.5008,59271.0,59269.0,0.084356]
[1723725789536,0.5008,59271.0,59270.0,0.084355]
[1723725790425,0.3608,59271.0,59270.0,0.084355]
[1723725790820,0.3608,59271.0,59268.0,0.06564519]
[1723725791123,0.3608,59271.0,59269.0,0.06564519]
[1723725791423,0.3608,59271.0,59270.0,0.04918267]
[1723725791424,0.445154,59271.0,59270.0,0.04918267]
[1723725791627,0.5508,59271.0,59268.0,0.04918267]
[1723725791822,0.084358,59268.0,59267.0,0.04918267]
[1723725792027,0.224358,59268.0,59266.0,0.04918267]
[1723725792232,0.224358,59268.0,59265.0,0.00025317]
[1723725792415,0.14,59268.0,59265.0,0.00025317]
[1723725792725,0.3618,59271.0,59270.0,0.084355]
[1723725792928,0.5208,59271.0,59270.0,0.084355]
[1723725793424,0.5208,59271.0,59266.0,0.08436]
[1723725793629,0.605154,59271.0,59266.0,0.08436]
[1723725793831,0.5208,59271.0,59269.0,0.084355]
[1723725794229,0.5208,59271.0,59270.0,0.084355]
[1723725794530,0.5208,59271.0,59266.0,0.08436]
[1723725794729,0.605155,59271.0,59266.0,0.08436]
[1723725794930,0.605155,59271.0,59265.0,0.00025317]
[1723725794931,0.605155,59271.0,59267.0,0.084358]
[1723725795121,0.605155,59271.0,59265.0,0.00025317]
[1723725795122,0.244355,59271.0,59265.0,0.04943584]
[1723725795323,0.244355,59271.0,59265.0,0.00025317]
[1723725796230,0.07560043,59271.0,59266.0,0.22700836]
[1723725796417,0.07560043,59271.0,59267.0,0.12854057]
[1723725796621,0.084356,59270.0,59268.0,0.12854057]
[1723725796822,0.084356,59270.0,59269.0,0.12854057]
[1723725797223,0.00025317,59272.0,59269.0,0.29476181]
[1723725797432,0.16025317,59272.0,59270.0,0.21040555]
[1723725797634,0.16025317,59272.0,59270.0,0.08186531]
[1723725797830,0.16025317,59272.0,59270.0,0.16621931]
[1723725797831,0.24460517,59272.0,59270.0,0.16621931]
[1723725798041,0.24460517,59272.0,59270.0,0.08186042]
[1723725798042,0.084354,59271.0,59270.0,0.08186042]
[1723725798230,0.084356,59269.0,59268.0,0.08187207]
[1723725798537,0.03496196,59269.0,59268.0,0.21290119]
[1723725798834,0.001,59279.0,59278.0,0.084344]
[1723725799033,0.084334,59285.0,59278.0,0.48934319]
[1723725799331,0.3608,59287.0,59278.0,0.48934319]
[1723725799332,0.3608,59287.0,59283.0,0.08177914]
[1723725799533,0.084334,59285.0,59283.0,0.08177914]
[1723725799731,0.084334,59285.0,59278.0,0.54612]
[1723725799732,0.084336,59283.0,59280.0,0.08177914]
[1723725800038,0.084336,59283.0,59277.0,0.08177914]
[1723725800039,0.084344,59278.0,59277.0,0.08177914]
[1723725800236,0.084345,59277.0,59276.0,0.08178234]
[1723725800438,0.168692,59276.0,59275.0,0.08178234]
[1723725800736,0.338692,59276.0,59275.0,0.21030565]
[1723725800923,0.338692,59276.0,59274.0,0.08178234]
[1723725800924,0.168696,59275.0,59274.0,0.08178234]
[1723725801124,0.168704,59272.0,59271.0,0.00025317]
[1723725801435,0.29863796,59272.0,59262.0,0.08178234]
[1723725801733,0.084366,59262.0,59261.0,0.08178234]
[1723725801937,0.168736,59261.0,59260.0,0.08178234]
[1723725802239,0.168746,59257.0,59256.0,0.08178234]
[1723725802437,0.168746,59257.0,59253.0,0.44258234]
[1723725802438,0.244373,59257.0,59253.0,0.44258234]
[1723725802735,0.244373,59257.0,59255.0,0.08178234]
[1723725802736,0.084375,59256.0,59255.0,0.08178234]
[1723725802929,0.084375,59256.0,59255.0,0.2103552]
[1723725803134,0.084375,59256.0,59251.0,0.00025317]
[1723725803135,0.168752,59255.0,59254.0,0.08178234]
[1723725803336,0.178752,59255.0,59254.0,0.08199658]
[1723725803530,0.084378,59254.0,59253.0,1.4e-07]
[1723725803836,0.168772,59248.0,59247.0,0.08199658]
[1723725804039,0.168772,59248.0,59244.0,0.08199658]
[1723725804040,0.04217109,59246.0,59244.0,0.08199658]
[1723725804237,0.04217109,59246.0,59237.0,0.3608]
[1723725804238,0.084392,59244.0,59243.0,0.08199658]
[1723725804430,0.084392,59244.0,59242.0,0.08199658]
[1723725804629,0.168786,59243.0,59242.0,0.08199658]
[1723725804833,0.04217109,59246.0,59241.0,0.08199658]
[1723725804834,0.16879,59242.0,59241.0,0.08199658]
[1723725805033,0.16879,59242.0,59241.0,0.21060368]
[1723725805229,0.084395,59242.0,59241.0,0.1286071]
[1723725805941,0.67519,59242.0,59241.0,0.1286071]
[1723725806632,0.16879,59242.0,59241.0,0.1286071]
[1723725806828,1.28966485,59242.0,59237.0,0.09841803]
[1723725807037,0.3608,59239.0,59234.0,0.08238947]
[1723725807238,0.084408,59233.0,59228.0,0.09883994]
[1723725807429,0.084412,59230.0,59229.0,0.12863351]
[1723725807632,0.6308,59230.0,59225.0,0.08251258]
[1723725807845,0.449418,59226.0,59224.0,0.06603145]
[1723725808044,0.3608,59225.0,59216.0,0.09903537]
[1723725808341,0.084429,59218.0,59210.0,0.3608]
[1723725808541,0.084439,59211.0,59210.0,0.3608]
[1723725808838,0.168896,59205.0,59204.0,0.3608]
[1723725809052,0.1688587,59205.0,59204.0,0.4598188]
[1723725809338,0.0844107,59205.0,59204.0,0.3608]
[1723725809736,0.1688587,59205.0,59204.0,0.3608]
[1723725809936,0.08460168,59205.0,59204.0,0.3608]
[1723725810637,0.08460168,59205.0,59199.0,0.00025317]
[1723725810638,0.084455,59200.0,59199.0,0.00025317]
[1723725812244,0.084449,59204.0,59199.0,0.00025317]
[1723725812546,0.084453,59202.0,59201.0,0.06572992]
[1723725812935,0.084453,59201.0,59199.0,0.00025317]
[1723725813135,0.084455,59200.0,59199.0,0.06593227]
[1723725813336,0.084455,59200.0,59199.0,0.00025317]
[1723725813837,0.00019098,59205.0,59199.0,0.00025317]
[1723725814036,0.00025317,59210.0,59204.0,0.3608]
[1723725814259,0.00025317,59210.0,59209.0,0.41001184]
[1723725814548,0.084442,59209.0,59208.0,0.06561578]
[1723725814731,0.00025317,59210.0,59207.0,0.04922957]
[1723725814934,0.00025317,59210.0,59209.0,0.41002957]
[1723725815134,0.00025317,59210.0,59209.0,0.445242]
[1723725815336,0.084442,59209.0,59206.0,0.04922957]
[1723725815537,0.084442,59209.0,59203.0,0.42641578]
[1723725815538,0.084446,59206.0,59205.0,0.04922957]
[1723725815747,0.00025317,59210.0,59205.0,0.04922957]
[1723725816130,0.3618,59212.0,59204.0,0.04922957]
[1723725816131,0.31135918,59212.0,59204.0,0.04922957]
[1723725816350,0.084439,59211.0,59204.0,0.04922957]
[1723725816645,0.365,59219.0,59207.0,0.084445]
[1723725816848,0.084438,59212.0,59205.0,0.04922957]
[1723725817045,0.8308,59217.0,59212.0,0.084436]
[1723725817046,0.3608,59217.0,59212.0,0.084436]
[1723725817239,0.3608,59217.0,59209.0,0.41002957]
[1723725817240,0.3908,59217.0,59209.0,0.41002957]
[1723725817545,0.18,59217.0,59209.0,0.41002957]
[1723725817747,0.19,59217.0,59212.0,0.04922957]
[1723725817943,0.084435,59215.0,59212.0,0.04922957]
[1723725818132,0.084436,59213.0,59212.0,0.04922957]
[1723725818333,0.084438,59212.0,59210.0,0.04922957]
[1723725818637,0.084439,59211.0,59210.0,0.04922957]
[1723725818942,0.574439,59211.0,59210.0,0.04922957]
[1723725819133,0.16888,59210.0,59209.0,0.3608]
[1723725819335,0.084442,59209.0,59208.0,0.04922957]
[1723725819644,0.084455,59200.0,59198.0,0.04922957]
[1723725819847,0.094455,59200.0,59198.0,0.04922957]
[1723725820037,0.094455,59200.0,59187.0,0.0990188]
[1723725820038,0.31891,59200.0,59196.0,0.04921899]
[1723725820346,0.32747055,59200.0,59199.0,6.219e-05]
[1723725820533,0.68827055,59200.0,59199.0,6.219e-05]
[1723725820734,0.595255,59200.0,59199.0,6.219e-05]
[1723725820937,0.084455,59200.0,59199.0,0.41008118]
[1723725821244,0.244455,59200.0,59199.0,6.219e-05]
[1723725821447,0.36731934,59200.0,59199.0,6.219e-05]
[1723725821647,0.36726949,59200.0,59199.0,6.219e-05]
[1723725821951,0.114455,59200.0,59199.0,6.219e-05]
[1723725822140,0.084455,59200.0,59199.0,6.219e-05]
[1723725822340,0.084449,59204.0,59199.0,6.219e-05]
[1723725822535,0.084452,59202.0,59201.0,0.04918525]
[1723725822742,0.084453,59201.0,59200.0,0.04918525]
[1723725823050,0.32114117,59205.0,59199.0,6.219e-05]
[1723725823249,0.24669317,59205.0,59201.0,0.04919111]
[1723725823444,0.18754576,59205.0,59202.0,0.04919111]
[1723725823643,0.18754576,59205.0,59199.0,6.219e-05]
[1723725823644,0.01025317,59205.0,59204.0,0.04919111]
[1723725823844,0.01025317,59205.0,59204.0,0.084449]
[1723725824041,0.445242,59209.0,59204.0,0.084449]
[1723725824239,0.595242,59209.0,59205.0,0.04919111]
[1723725824554,0.084446,59206.0,59204.0,0.04919111]
[1723725824748,0.084446,59206.0,59205.0,0.04919111]
[1723725825046,0.01,59206.0,59203.0,0.04919111]
[1723725825245,0.084448,59205.0,59204.0,0.04918993]
[1723725825551,0.629448,59205.0,59204.0,0.04918993]
[1723725825744,0.084449,59204.0,59203.0,0.04918993]
[1723725826049,0.1689,59203.0,59202.0,0.04918993]
[1723725826256,0.084452,59202.0,59201.0,0.3608]
[1723725826439,0.084453,59201.0,59199.0,6.219e-05]
[1723725826640,0.16891,59200.0,59199.0,6.219e-05]
[1723725826841,0.65746311,59200.0,59199.0,6.219e-05]
[1723725827036,0.564455,59200.0,59199.0,6.219e-05]
[1723725827249,0.564455,59200.0,59199.0,0.04928824]
[1723725827657,0.564455,59200.0,59199.0,6.219e-05]
[1723725827950,0.65718682,59200.0,59199.0,6.219e-05]
[1723725828546,0.57273182,59200.0,59199.0,0.04928824]
[1723725828951,0.57273182,59200.0,59199.0,6.219e-05]
[1723725829454,0.57273182,59200.0,59199.0,0.06583858]
[1723725829752,0.564455,59200.0,59199.0,6.219e-05]
[1723725830063,0.7258,59218.0,59199.0,1.23734786]
[1723725830247,0.7258,59218.0,59208.0,0.09874776]
[1723725830248,0.084442,59209.0,59208.0,0.09874776]
[1723725830439,0.084442,59209.0,59208.0,0.22743052]
[1723725830645,0.084442,59209.0,59208.0,0.12868276]
[1723725831051,0.304442,59209.0,59208.0,0.12868276]
[1723725831251,0.304442,59209.0,59208.0,0.2275798]
[1723725831452,0.304442,59209.0,59208.0,0.22758876]
[1723725831453,0.084442,59209.0,59208.0,0.22758876]
[1723725831847,0.00025317,59211.0,59208.0,0.12868276]
[1723725832147,0.03025317,59211.0,59210.0,0.08444]
[1723725832338,0.03025317,59211.0,59210.0,0.28529104]
[1723725832546,0.11469217,59211.0,59210.0,0.12868276]
[1723725833249,0.03025317,59211.0,59210.0,0.36973102]
[1723725833447,0.084425,59221.0,59210.0,0.6010631]
[1723725833651,0.09302985,59230.0,59218.0,0.11563113]
[1723725833853,0.084424,59222.0,59221.0,0.11563113]
[1723725834151,0.084424,59222.0,59221.0,0.46983367]
[1723725834354,0.084419,59226.0,59221.0,0.49771801]
[1723725834651,0.084419,59225.0,59224.0,0.11567878]
[1723725834850,0.084419,59225.0,59224.0,0.4697571]
[1723725835252,0.224419,59225.0,59224.0,0.4009896]
[1723725835751,0.224419,59225.0,59224.0,0.58550976]
[1723725835951,0.084419,59225.0,59224.0,0.58550976]
[1723725836149,0.3608,59227.0,59224.0,0.46975321]
[1723725836457,0.3608,59227.0,59226.0,0.11584287]
[1723725836660,0.3608,59227.0,59226.0,0.58559608]
[1723725836960,0.00025317,59229.0,59228.0,0.084415]
[1723725837150,0.00025317,59229.0,59228.0,0.4697432]
[1723725837151,0.08466617,59229.0,59228.0,0.4697432]
[1723725837353,0.00025317,59229.0,59228.0,0.4697432]
[1723725837548,0.08466617,59229.0,59228.0,0.4697432]
[1723725837952,0.00025317,59229.0,59228.0,0.4697432]
[1723725838356,0.08466617,59229.0,59228.0,0.4697432]
[1723725838659,0.084413,59229.0,59228.0,0.4697432]
[1723725838855,0.084413,59229.0,59228.0,0.60205995]
[1723725838856,0.168826,59229.0,59228.0,0.60205995]
[1723725839064,0.328826,59229.0,59228.0,0.28522237]
[1723725839358,0.338826,59229.0,59228.0,0.28522237]
[1723725839552,0.328826,59229.0,59228.0,0.28522237]
[1723725839957,0.338826,59229.0,59228.0,0.28522237]
[1723725840150,0.845346,59229.0,59228.0,0.28522237]
[1723725840554,0.760933,59229.0,59228.0,0.28522237]
[1723725840861,0.845346,59229.0,59228.0,0.28522237]
[1723725841065,0.338826,59229.0,59228.0,0.28522237]
[1723725841251,0.16,59229.0,59228.0,0.28522237]
[1723725841451,0.244413,59229.0,59228.0,0.46973974]
[1723725841654,0.548826,59229.0,59228.0,0.46973974]
[1723725841862,0.464413,59229.0,59228.0,0.46973974]
[1723725842067,0.244413,59229.0,59228.0,0.46973974]
[1723725842259,0.244413,59229.0,59228.0,0.58551907]
[1723725842562,0.348826,59229.0,59228.0,0.4010017]
[1723725842763,0.348826,59229.0,59228.0,0.28522237]
[1723725842953,0.244413,59229.0,59228.0,0.28522237]
[1723725843156,0.084413,59229.0,59228.0,0.28522237]
[1723725843661,0.094413,59229.0,59228.0,0.28522237]
[1723725844058,0.244413,59229.0,59228.0,0.28522237]
[1723725844464,0.234413,59229.0,59228.0,0.28522237]
[1723725845161,0.084413,59229.0,59228.0,0.28522237]
[1723725846164,0.084411,59231.0,59228.0,0.28522237]
[1723725846363,0.084412,59230.0,59229.0,0.28519525]
[1723725846561,0.284412,59230.0,59229.0,0.28519525]
[1723725847071,0.124412,59230.0,59229.0,0.28519525]
[1723725847657,0.04,59230.0,59229.0,0.28519525]
[1723725847865,0.04,59230.0,59229.0,0.36960825]